bitfinex-derivatives/quotes_SOLF0:USTF0_20260314
["timestamp","ask_amount","ask_price","bid_price","bid_amount"]
[1773524708152,3.77455427,87.099,87.055,3.78953631]
[1773524720265,3.77455427,87.099,87.058,3.78953631]
[1773524740190,3.71002152,87.097,87.058,3.78953631]
[1773524745792,3.71002152,87.109,87.064,3.96991243]
[1773524745983,8.80928666,87.108,87.064,3.96991243]
[1773524746189,8.80928666,87.107,87.064,3.96991243]
[1773524746391,8.80928666,87.106,87.064,3.96991243]
[1773524746588,3.71002152,87.109,87.066,3.96991243]
[1773524746789,8.80787062,87.108,87.066,3.96991243]
[1773524747093,8.80787062,87.107,87.072,3.96991243]
[1773524747395,66.0,87.112,87.072,3.96991243]
[1773524748996,69.71002152,87.112,87.072,3.96991243]
[1773524749599,3.77477453,87.109,87.072,3.96991243]
[1773524749796,12.57682782,87.108,87.072,3.96991243]
[1773524749999,3.77477453,87.108,87.072,3.96991243]
[1773524760698,66.0,87.112,87.072,3.96991243]
[1773524760903,3.73000796,87.118,87.072,3.96991243]
[1773524761102,8.79803477,87.117,87.072,3.96991243]
[1773524761303,8.79803477,87.116,87.072,3.96991243]
[1773524761601,8.79803477,87.115,87.074,3.89684254]
[1773524761803,3.73000796,87.115,87.074,3.89684254]
[1773524763299,3.11496156,87.12,87.074,3.89684254]
[1773524763300,3.73000796,87.113,87.074,3.89684254]
[1773524763501,3.73000796,87.111,87.074,3.89684254]
[1773524774707,3.11496156,87.12,87.074,3.89684254]
[1773524775107,3.73000796,87.119,87.074,3.89684254]
[1773524775503,3.11496156,87.12,87.076,3.89684254]
[1773524775707,3.11496156,87.15,87.078,3.89684254]
[1773524775911,3.73000796,87.149,87.079,3.89684254]
[1773524776110,3.11496156,87.14,87.079,3.89684254]
[1773524776311,3.11496156,87.14,87.035,34.45]
[1773524776312,3.73000796,87.129,87.089,3.89684254]
[1773524776507,3.11496156,87.12,87.089,3.89684254]
[1773524777608,3.73000796,87.129,87.089,3.89684254]
[1773524777916,3.73000796,87.129,87.092,3.89684254]
[1773524779017,3.73000796,87.139,87.092,3.89684254]
[1773524779418,3.73000796,87.139,87.094,3.89684254]
[1773524793219,3.73000796,87.139,87.084,3.74713715]
[1773524793426,3.86188226,87.129,87.084,3.74713715]
[1773524795922,3.86188226,87.129,87.086,3.74713715]
[1773524818125,3.86188226,87.129,87.09,3.78937953]
[1773524826044,3.86188226,87.129,87.092,10.332]
[1773524826443,3.86188226,87.129,87.09,3.78937953]
[1773524833544,3.86188226,87.129,87.092,3.78937953]
[1773524837246,3.96070991,87.127,87.092,3.78937953]
[1773524838057,8.80599969,87.126,87.092,3.78937953]
[1773524838255,8.80599969,87.125,87.092,3.78937953]
[1773524838555,3.96070991,87.127,87.092,3.78937953]
[1773524838855,12.7682701,87.126,87.092,3.78937953]
[1773524839052,8.80756019,87.125,87.092,3.78937953]
[1773524839252,3.96070991,87.126,87.092,3.78937953]
[1773524839550,8.80719814,87.125,87.092,3.78937953]
[1773524839745,3.96070991,87.126,87.092,3.78937953]
[1773524839950,8.80719814,87.125,87.092,3.78937953]
[1773524840150,3.96070991,87.126,87.092,3.78937953]
[1773524859579,3.96070991,87.126,87.095,10.331]
[1773524863685,3.96070991,87.126,87.095,14.01092134]
[1773524867583,8.62917581,87.125,87.095,14.01092134]
[1773524867788,8.62917581,87.124,87.095,14.01092134]
[1773524867985,8.62917581,87.123,87.095,14.01092134]
[1773524868184,8.62917581,87.122,87.095,14.01092134]
[1773524868386,3.96070991,87.126,87.095,14.01092134]
[1773524868387,8.62917581,87.121,87.095,14.01092134]
[1773524868588,3.96070991,87.126,87.095,14.01092134]
[1773524870393,3.96070991,87.126,87.096,3.95282804]
[1773524875088,3.96070991,87.126,87.097,10.331]
[1773524876793,3.83999705,87.149,87.1,3.81140456]
[1773524876993,3.83999705,87.147,87.1,3.81140456]
[1773524877194,3.83999705,87.145,87.1,3.81140456]
[1773524877391,3.83999705,87.143,87.1,3.81140456]
[1773524877592,3.83999705,87.141,87.1,3.81140456]
[1773524877789,3.83999705,87.139,87.1,3.81140456]
[1773524878093,3.11223832,87.15,87.1,3.81140456]
[1773524878094,3.83999705,87.137,87.1,3.81140456]
[1773524878290,3.83999705,87.135,87.1,3.81140456]
[1773524892702,3.83999705,87.133,87.1,3.81140456]
[1773524903705,3.82177834,87.159,87.105,3.92944048]
[1773524903910,61.82,87.195,87.105,3.92944048]
[1773524903911,3.82177834,87.157,87.105,3.92944048]
[1773524904113,3.82177834,87.155,87.105,3.92944048]
[1773524904612,3.82177834,87.155,87.109,3.92944048]
[1773524905115,3.82177834,87.167,87.115,3.92944048]
[1773524905414,17.67891632,87.166,87.115,3.92944048]
[1773524905613,17.67891632,87.165,87.115,3.92944048]
[1773524905811,8.78912532,87.164,87.115,3.92944048]
[1773524906015,8.78912532,87.163,87.115,3.92944048]
[1773524906216,8.78912532,87.162,87.115,3.92944048]
[1773524906416,8.78912532,87.161,87.115,3.92944048]
[1773524906612,8.78912532,87.16,87.12,3.92944048]
[1773524906816,3.82177834,87.167,87.12,3.92944048]
[1773524907017,17.67247971,87.166,87.12,3.92944048]
[1773524907315,8.78589724,87.165,87.12,3.92944048]
[1773524907511,8.78589724,87.164,87.12,3.92944048]
[1773524907813,8.78589724,87.163,87.12,3.92944048]
[1773524908016,8.78589724,87.162,87.126,3.92944048]
[1773524908210,3.82177834,87.167,87.126,3.92944048]
[1773524908407,8.78129069,87.166,87.126,3.92944048]
[1773524908610,8.78129069,87.165,87.126,3.92944048]
[1773524908811,8.78129069,87.164,87.126,3.92944048]
[1773524909020,8.78129069,87.163,87.126,3.92944048]
[1773524909217,3.82177834,87.167,87.126,3.92944048]
[1773524910521,3.82177834,87.167,87.132,3.92944048]
[1773524920529,3.82177834,87.167,87.134,3.92944048]
[1773524921626,3.82177834,87.167,87.138,3.92944048]
[1773524922425,3.82177834,87.167,87.128,14.25644048]
[1773524923327,3.82177834,87.167,87.129,3.92944048]
[1773524926124,3.82177834,87.167,87.132,10.327]
[1773524928231,3.82177834,87.167,87.133,3.92944048]
[1773524930528,160.78606673,87.174,87.133,3.92944048]
[1773524930735,164.48276611,87.174,87.133,3.92944048]
[1773524931634,160.78606673,87.174,87.137,4.05404239]
[1773524931837,3.88300298,87.202,87.151,4.05404239]
[1773524932232,3.88300298,87.202,87.123,21.46888938]
[1773524932233,3.10921158,87.2,87.157,4.05404239]
[1773524932535,3.88300298,87.199,87.157,4.05404239]
[1773524932733,3.88300298,87.179,87.13,4.05404239]
[1773524933840,3.88300298,87.179,87.1,3.10921158]
[1773524933841,3.88300298,87.169,87.12,14.38204239]
[1773524934040,3.88300298,87.169,87.121,4.05404239]
[1773524937148,3.88300298,87.169,87.126,10.328]
[1773524937337,3.88300298,87.159,87.121,4.05404239]
[1773524951252,3.10921158,87.17,87.125,4.05404239]
[1773524951455,3.88300298,87.169,87.125,4.05404239]
[1773524953253,3.88300298,87.169,87.127,4.05404239]
[1773524955051,3.88300298,87.169,87.11,3.10921158]
[1773524955052,3.88300298,87.169,87.13,4.05404239]
[1773524955449,3.88300298,87.178,87.13,4.05404239]
[1773524956659,3.88300298,87.178,87.134,4.05404239]
[1773524957760,3.88300298,87.178,87.137,4.05404239]
[1773524959662,3.88300298,87.178,87.14,4.05404239]
[1773524960860,3.88300298,87.178,87.143,4.05404239]
[1773524965666,3.88300298,87.178,87.146,3.99841174]
[1773524975173,3.88300298,87.178,87.148,3.99841174]
[1773524977674,3.88300298,87.178,87.15,10.325]
[1773524977974,3.88300298,87.178,87.121,3.99841174]
[1773524978772,3.88300298,87.178,87.14,3.99841174]
[1773524979775,3.88300298,87.178,87.142,3.99841174]
[1773524981675,3.88300298,87.178,87.147,14.32341174]
[1773524990482,3.88300298,87.178,87.148,3.74414045]
[1773524994884,3.74931864,87.189,87.148,3.74414045]
[1773524995478,3.74931864,87.189,87.15,10.325]
[1773524995876,3.74931864,87.189,87.148,3.74414045]
[1773524999386,3.74931864,87.187,87.142,10.326]
[1773524999786,3.74931864,87.187,87.142,14.23227347]
[1773524999986,3.74931864,87.187,87.143,3.90627347]
[1773525000588,3.74931864,87.187,87.146,3.90627347]
[1773525002190,8.7558901,87.186,87.146,3.90627347]
[1773525002390,3.74931864,87.187,87.146,3.90627347]
[1773525002688,8.75592602,87.186,87.146,3.90627347]
[1773525002888,3.74931864,87.187,87.146,3.90627347]
[1773525003083,12.50524466,87.186,87.146,3.90627347]
[1773525003283,3.74931864,87.186,87.146,3.90627347]
[1773525030415,3.70922574,87.198,87.15,3.90555139]
[1773525030612,3.70922574,87.196,87.15,3.90555139]
[1773525030814,3.70922574,87.194,87.15,3.90555139]
[1773525031114,3.70922574,87.192,87.15,3.90555139]
[1773525031314,3.70922574,87.19,87.15,3.90555139]
[1773525031613,3.70922574,87.188,87.15,3.90555139]
[1773525031809,3.70922574,87.186,87.15,3.90555139]
[1773525035413,3.70922574,87.186,87.141,3.90555139]
[1773525036414,3.70922574,87.186,87.145,3.90555139]
[1773525044516,3.70922574,87.184,87.145,3.90555139]
[1773525044820,8.757972,87.183,87.145,3.90555139]
[1773525045017,8.757972,87.182,87.145,3.90555139]
[1773525045220,3.70922574,87.184,87.145,3.90555139]
[1773525051031,3.70922574,87.184,87.147,3.85186868]
[1773525058138,3.70922574,87.184,87.149,3.69558432]
[1773525062041,3.74812519,87.199,87.149,3.69558432]
[1773525062341,3.74812519,87.197,87.149,3.69558432]
[1773525062640,3.74812519,87.195,87.149,3.69558432]
[1773525062839,3.74812519,87.193,87.149,3.69558432]
[1773525063038,3.74812519,87.191,87.149,3.69558432]
[1773525063239,3.74812519,87.189,87.149,3.69558432]
[1773525063440,8.73377183,87.188,87.149,3.69558432]
[1773525063642,3.74812519,87.189,87.149,3.69558432]
[1773525063643,8.73377183,87.187,87.149,3.69558432]
[1773525063836,3.74812519,87.189,87.149,3.69558432]
[1773525064044,8.7337421,87.188,87.149,3.69558432]
[1773525064343,8.7337421,87.187,87.149,3.69558432]
[1773525064545,3.74812519,87.189,87.151,3.69558432]
[1773525064842,8.73373513,87.188,87.151,3.69558432]
[1773525065049,8.73373513,87.187,87.151,3.69558432]
[1773525065346,3.74812519,87.189,87.151,3.69558432]
[1773525065649,3.74812519,87.189,87.157,3.69558432]
[1773525066546,3.74812519,87.189,87.16,3.69558432]
[1773525067145,3.74812519,87.206,87.16,3.69558432]
[1773525067346,3.74812519,87.204,87.16,3.69558432]
[1773525067549,3.74812519,87.202,87.16,3.69558432]
[1773525068749,3.74812519,87.202,87.164,10.323]
[1773525068948,3.74812519,87.202,87.165,3.69558432]
[1773525071646,3.74812519,87.202,87.166,10.323]
[1773525071951,3.74812519,87.211,87.167,3.69558432]
[1773525073150,3.74812519,87.211,87.169,3.69558432]
[1773525077956,3.74812519,87.209,87.169,3.69558432]
[1773525083450,3.74812519,87.209,87.172,10.322]
[1773525084346,3.74812519,87.209,87.173,3.65442876]
[1773525089058,3.74812519,87.209,87.175,3.65442876]
[1773525089262,3.68579598,87.218,87.175,3.65442876]
[1773525090367,61.62,87.224,87.179,3.65442876]
[1773525090566,62.02,87.226,87.179,3.65442876]
[1773525091167,3.68579598,87.225,87.191,10.32]
[1773525091769,3.68579598,87.225,87.192,3.65442876]
[1773525092370,3.68579598,87.225,87.139,39.72]
[1773525092371,22.34069812,87.236,87.194,3.65442876]
[1773525093172,18.65490214,87.236,87.194,3.65442876]
[1773525093669,18.65490214,87.236,87.196,3.65442876]
[1773525094466,18.65490214,87.236,87.201,3.65442876]
[1773525095572,18.65490214,87.236,87.207,3.65442876]
[1773525095768,1.32490214,87.236,87.207,3.65442876]
[1773525095970,0.00090214,87.236,87.207,3.65442876]
[1773525097772,0.00090214,87.236,87.2,3.1085146]
[1773525097773,0.00090214,87.236,87.219,3.65442876]
[1773525100471,0.00090214,87.236,87.207,3.65442876]
[1773525100676,3.68669812,87.236,87.194,3.65442876]
[1773525101567,3.68669812,87.236,87.196,3.65442876]
[1773525101769,3.68669812,87.236,87.185,3.65442876]
[1773525102077,3.68579598,87.229,87.185,3.65442876]
[1773525106575,3.68579598,87.229,87.186,13.97542876]
[1773525106972,3.68579598,87.229,87.187,3.65442876]
[1773525115877,3.68579598,87.229,87.192,3.75591529]
[1773525117686,3.68579598,87.229,87.194,3.75591529]
[1773525119284,3.68579598,87.229,87.196,3.75591529]
[1773525123786,0.00090214,87.236,87.196,3.75591529]
[1773525124183,0.00090214,87.236,87.199,3.75591529]
[1773525141201,0.00090214,87.236,87.201,3.75591529]
[1773525154201,0.00090214,87.236,87.2,10.319]
[1773525159002,0.00090214,87.236,87.202,10.319]
[1773525159201,0.00090214,87.236,87.203,3.84477805]
[1773525164418,0.00090214,87.236,87.205,10.318]
[1773525165111,0.00090214,87.236,87.18,3.10558902]
[1773525165112,0.00090214,87.236,87.208,3.84477805]
[1773525165708,0.00090214,87.236,87.22,3.84477805]
[1773525166214,0.00090214,87.236,87.224,3.84477805]
[1773525167521,0.00090214,87.236,87.225,10.316]
[1773525167917,0.00090214,87.236,87.226,3.84477805]
[1773525168420,0.00090214,87.236,87.229,10.316]
[1773525173233,0.00090214,87.236,87.22,10.317]
[1773525173430,0.00090214,87.236,87.221,4.05084012]
[1773525175331,0.00090214,87.236,87.221,2.29483761]
[1773525175833,0.00090214,87.236,87.208,10.318]
[1773525176041,6.77648871,87.23,87.188,10.32]
[1773525176336,6.77648871,87.23,87.17,3.10358064]
[1773525176938,3.67290807,87.229,87.187,10.321]
[1773525177138,3.67290807,87.229,87.17,3.10358064]
[1773525177440,0.00090214,87.236,87.198,3.89287389]
[1773525178542,0.00090214,87.236,87.207,3.88224342]
[1773525179642,0.00090214,87.236,87.216,3.89079744]
[1773525180634,0.00090214,87.236,87.218,3.9693056]
[1773525181543,0.00090214,87.236,87.224,3.97491214]
[1773525182441,0.00090214,87.236,87.227,10.316]
[1773525182645,0.00090214,87.236,87.228,3.97919758]
[1773525190350,0.00090214,87.236,87.23,10.315]
[1773525196648,0.00090214,87.236,87.231,4.05084012]
[1773525196851,3.67290807,87.27,87.233,4.05084012]
[1773525197652,3.67290807,87.27,87.235,4.05084012]
[1773525198049,6.77648871,87.27,87.235,4.05084012]
[1773525198254,3.67290807,87.269,87.235,4.05084012]
[1773525198755,3.67290807,87.259,87.224,4.05084012]
[1773525199654,3.67290807,87.249,87.215,10.317]
[1773525199855,3.67290807,87.249,87.184,39.7]
[1773525199856,3.67290807,87.249,87.191,3.89634882]
[1773525200148,3.67290807,87.249,87.206,3.89186333]
[1773525200755,3.67290807,87.249,87.207,14.20986333]
[1773525201151,3.67290807,87.249,87.209,10.318]
[1773525203755,3.67290807,87.249,87.208,3.89812447]
[1773525207458,3.67290807,87.249,87.209,10.318]
[1773525210555,3.67290807,87.249,87.209,14.03620532]
[1773525214670,3.67290807,87.249,87.199,14.04630977]
[1773525214963,3.67290807,87.249,87.2,3.72730977]
[1773525220865,3.67290807,87.249,87.202,3.70315861]
[1773525222568,3.10358064,87.24,87.202,3.70315861]
[1773525222771,3.81258971,87.239,87.202,3.70315861]
[1773525223370,3.81258971,87.239,87.206,3.69627112]
[1773525230170,3.10461173,87.25,87.206,3.69627112]
[1773525230376,3.97046377,87.249,87.208,3.63961452]
[1773525231966,3.97046377,87.249,87.177,3.62941965]
[1773525232171,3.78248048,87.239,87.177,3.62941965]
[1773525233573,3.78248048,87.239,87.194,3.62439103]
[1773525234278,3.78248048,87.239,87.196,3.56420986]
[1773525243587,3.78248048,87.239,87.198,3.55200094]
[1773525246792,3.78248048,87.239,87.2,3.55166931]
[1773525259505,3.78248048,87.237,87.191,3.54638978]
[1773525260203,3.78248048,87.219,87.179,10.322]
[1773525260404,3.78248048,87.219,87.175,3.54257323]
[1773525260600,3.78248048,87.219,87.159,3.54257323]
[1773525260799,3.78248048,87.217,87.159,3.54257323]
[1773525261501,3.73060439,87.209,87.162,3.55206566]
[1773525262607,3.73060439,87.209,87.163,10.323]
[1773525264809,3.73060439,87.209,87.163,13.84868492]
[1773525265607,3.73060439,87.209,87.167,3.52611878]
[1773525266513,3.73060439,87.209,87.174,10.322]
[1773525267512,3.73060439,87.209,87.174,13.85375717]
[1773525268717,3.73060439,87.229,87.182,3.54393825]
[1773525270613,3.73060439,87.229,87.182,13.86493825]
[1773525271813,3.73060439,87.229,87.17,3.10461173]
[1773525271814,3.73060439,87.229,87.184,13.89003069]
[1773525272014,10.314,87.246,87.15,21.46888938]
[1773525272015,3.73060439,87.24,87.191,3.57095645]
[1773525272713,3.73060439,87.256,87.206,3.57095645]
[1773525272910,3.73060439,87.251,87.206,3.57095645]
[1773525273313,3.10461173,87.25,87.206,3.57095645]
[1773525273517,3.73060439,87.249,87.206,3.57095645]
[1773525273917,3.73060439,87.239,87.181,3.57093214]
[1773525277118,3.73060439,87.239,87.19,3.47970342]
[1773525278621,3.73060439,87.239,87.195,3.48051856]
[1773525280621,3.73060439,87.239,87.196,13.8321627]
[1773525281216,3.73060439,87.239,87.198,10.319]
[1773525281511,3.73060439,87.239,87.199,3.51330738]
[1773525281716,6.83521612,87.25,87.201,3.51330738]
[1773525281913,3.73060439,87.249,87.201,3.51330738]
[1773525283518,3.73060439,87.249,87.203,13.81939147]
[1773525283925,3.73060439,87.249,87.204,3.5004048]
[1773525302035,7.01516152,87.24,87.204,3.5004048]
[1773525303840,7.01516152,87.24,87.205,10.318]
[1773525304138,7.01516152,87.24,87.206,3.49605379]
[1773525306337,3.91061346,87.239,87.206,3.49605379]
[1773525312332,3.91061346,87.239,87.196,10.319]
[1773525312536,3.91061346,87.239,87.197,3.48671442]
[1773525315741,3.91061346,87.229,87.187,3.49065753]
[1773525316040,3.91061346,87.227,87.161,3.49068482]
[1773525316238,3.91061346,87.219,87.178,10.322]
[1773525317045,3.91061346,87.219,87.174,3.49068482]
[1773525319643,10.317,87.218,87.161,10.324]
[1773525319942,3.91061346,87.209,87.163,10.323]
[1773525320145,3.91061346,87.209,87.164,3.53406706]
[1773525326146,3.91061346,87.209,87.123,325.22393661]
[1773525326147,3.80444624,87.199,87.145,3.51384141]
[1773525326344,3.80444624,87.189,87.145,3.51384141]
[1773525326746,3.80444624,87.189,87.135,3.51384141]
[1773525327848,3.80444624,87.189,87.142,3.52700913]
[1773525328455,3.80444624,87.189,87.153,3.51672036]
[1773525329559,3.80444624,87.189,87.157,3.52177504]
[1773525331359,3.80444624,87.209,87.159,3.54187117]
[1773525332560,3.80444624,87.209,87.162,3.53463719]
[1773525333261,3.80444624,87.209,87.163,10.323]
[1773525333460,3.80444624,87.209,87.164,3.53991925]
[1773525338171,3.80444624,87.209,87.166,3.57293716]
[1773525339764,3.80444624,87.229,87.176,3.57294066]
[1773525339964,6.9089943,87.24,87.176,3.57294066]
[1773525340164,3.80444624,87.239,87.187,3.57803373]
[1773525340465,3.80444624,87.229,87.187,3.57803373]
[1773525341268,3.80444624,87.219,87.187,3.57803373]
[1773525356180,3.80444624,87.219,87.188,10.32]
[1773525356386,3.67287407,87.235,87.189,3.67073909]
[1773525357685,3.67287407,87.235,87.192,3.67045276]
[1773525359288,3.67287407,87.235,87.17,3.10600058]
[1773525359289,3.67287407,87.235,87.194,3.65384975]
[1773525360789,3.67287407,87.235,87.195,3.65583494]
[1773525361390,3.67287407,87.235,87.206,3.66563179]
[1773525361989,3.67287407,87.249,87.206,3.66563179]
[1773525370897,3.67287407,87.239,87.206,3.66563179]
[1773525382317,3.67287407,87.239,87.21,10.318]
[1773525382512,3.67287407,87.239,87.206,3.66563179]
[1773525394029,3.67287407,87.239,87.196,3.66085744]
[1773525399533,3.67287407,87.239,87.153,28.6119864]
[1773525399534,4.04756094,87.259,87.202,3.67311173]
[1773525400530,4.04756094,87.259,87.213,3.67311173]
[1773525401432,4.04756094,87.259,87.215,3.67311173]
[1773525402536,4.04756094,87.259,87.216,10.317]
[1773525402834,4.04756094,87.259,87.217,3.67311173]
[1773525404433,4.04756094,87.259,87.222,3.67311173]
[1773525404837,4.04756094,87.271,87.224,3.67311173]
[1773525405831,62.22756094,87.269,87.224,3.67311173]
[1773525406238,4.04756094,87.268,87.224,3.67311173]
[1773525411240,4.04756094,87.268,87.226,3.6741641]
[1773525412743,186.70451567,87.28,87.187,21.46888938]
[1773525412744,3.9591403,87.279,87.235,3.64005086]
[1773525414646,3.9591403,87.279,87.237,3.6348186]
[1773525422657,7.06203155,87.27,87.237,3.6348186]
[1773525422958,3.9591403,87.269,87.237,3.6348186]
[1773525424157,3.9591403,87.279,87.237,3.6348186]
[1773525427561,3.9591403,87.269,87.237,3.6348186]
[1773525442886,3.76478761,87.259,87.228,3.50634362]
[1773525443389,3.10289125,87.25,87.219,10.317]
[1773525443581,6.86767886,87.25,87.219,10.317]
[1773525443879,3.10289125,87.25,87.222,10.316]
[1773525444078,3.10289125,87.25,87.22,3.50329336]
[1773525444885,3.10289125,87.26,87.223,3.51367724]
[1773525445685,3.76478761,87.268,87.223,3.51367724]
[1773525446590,3.76478761,87.268,87.225,3.51845263]
[1773525447487,3.76478761,87.268,87.227,3.51847747]
[1773525447892,8.73310369,87.267,87.227,3.51847747]
[1773525448188,3.76478761,87.268,87.227,3.51847747]
[1773525448390,8.73401398,87.267,87.227,3.51847747]
[1773525448586,3.76478761,87.268,87.227,3.51847747]
[1773525448794,8.73401398,87.267,87.227,3.51847747]
[1773525448989,3.76478761,87.268,87.227,3.51847747]
[1773525449190,8.73401398,87.267,87.227,3.51847747]
[1773525449388,3.76478761,87.268,87.227,3.51847747]
[1773525449586,3.76478761,87.266,87.227,3.51847747]
[1773525452692,3.76478761,87.266,87.229,3.55814452]
[1773525453394,3.76478761,87.266,87.231,3.55811818]
[1773525453795,3.10289125,87.27,87.231,3.55811818]
[1773525454294,3.76478761,87.277,87.231,3.55811818]
[1773525454495,3.76478761,87.275,87.231,3.55811818]
[1773525454693,3.76478761,87.273,87.231,3.55811818]
[1773525454992,8.73198975,87.272,87.231,3.55811818]
[1773525455190,8.73198975,87.271,87.231,3.55811818]
[1773525455389,3.76478761,87.273,87.231,3.55811818]
[1773525455594,8.7321199,87.272,87.233,3.55928817]
[1773525455896,8.7321199,87.271,87.233,3.55928817]
[1773525456097,3.76478761,87.273,87.233,3.55928817]
[1773525456395,8.7322487,87.272,87.233,3.55928817]
[1773525456587,8.7322487,87.271,87.233,3.55928817]
[1773525456790,3.76478761,87.273,87.233,3.55928817]
[1773525456988,12.49703951,87.272,87.233,3.55928817]
[1773525457290,8.7322519,87.271,87.233,3.55928817]
[1773525457489,3.76478761,87.272,87.237,3.57215113]
[1773525458094,58.84,87.278,87.244,3.57215113]
[1773525459503,3.76478761,87.282,87.248,10.313]
[1773525459805,8.73195057,87.281,87.249,3.56249751]
[1773525459998,11.83484182,87.28,87.249,3.56249751]
[1773525460198,3.10289125,87.28,87.249,3.56249751]
[1773525460492,6.86767886,87.28,87.249,3.56249751]
[1773525461694,3.76478761,87.279,87.249,3.56249751]
[1773525462800,3.76478761,87.269,87.237,3.55863976]
[1773525477415,3.76478761,87.269,87.239,3.5465092]
[1773525481813,8.83550994,87.29,87.244,3.55237494]
[1773525482018,8.72184073,87.289,87.244,3.55237494]
[1773525482318,8.72184073,87.288,87.244,3.55237494]
[1773525482508,3.96534504,87.289,87.244,3.55237494]
[1773525482708,12.68653194,87.288,87.244,3.55237494]
[1773525482914,3.96534504,87.288,87.244,3.55237494]
[1773525483614,3.96534504,87.288,87.253,10.313]
[1773525483810,3.96534504,87.288,87.253,13.88780245]
[1773525484014,3.96534504,87.288,87.254,3.57480245]
[1773525485616,3.96534504,87.288,87.255,10.313]
[1773525490824,3.96534504,87.288,87.256,3.58559534]
[1773525491325,3.96534504,87.298,87.258,3.58558695]
[1773525495721,3.96534504,87.298,87.261,3.63636153]
[1773525496622,3.96534504,87.298,87.263,3.63628172]
[1773525501123,3.96534504,87.309,87.266,3.64374973]
[1773525502626,3.96534504,87.309,87.267,3.68740486]
[1773525505423,3.96534504,87.309,87.266,10.311]
[1773525505629,3.96534504,87.309,87.266,3.7092]
[1773525505630,3.1024379,87.3,87.266,3.7092]
[1773525506028,3.96534504,87.309,87.266,3.7092]
[1773525510735,3.96534504,87.309,87.27,10.311]
[1773525513526,3.96534504,87.309,87.273,3.56950592]
[1773525514531,3.96534504,87.309,87.275,3.57179269]
[1773525519134,3.96534504,87.309,87.278,10.31]
[1773525528541,3.96534504,87.309,87.278,13.86561027]
[1773525530533,3.96534504,87.309,87.279,3.55342728]
[1773525542247,3.78829882,87.307,87.239,25.12111141]
[1773525542453,3.78829882,87.289,87.239,3.65222203]
[1773525543554,3.78829882,87.289,87.24,3.65732785]
[1773525544349,3.78829882,87.289,87.246,3.65261291]
[1773525546257,3.78829882,87.289,87.248,3.65771751]
[1773525556863,3.78829882,87.289,87.252,3.68109941]
[1773525558569,3.78829882,87.289,87.254,3.68801081]
[1773525561571,3.78829882,87.289,87.231,249.14753836]
[1773525561768,3.66899073,87.269,87.229,3.69067771]
[1773525561972,3.66899073,87.259,87.219,3.69067771]
[1773525562272,3.09912326,87.26,87.191,39.68]
[1773525562273,3.66899073,87.249,87.208,3.67502072]
[1773525562469,3.66899073,87.249,87.181,3.67502072]
[1773525562776,3.66899073,87.239,87.181,3.67502072]
[1773525563671,3.66899073,87.239,87.184,3.63060168]
[1773525564670,3.66899073,87.239,87.187,3.66183623]
[1773525565574,3.66899073,87.239,87.189,3.76761454]
[1773525575378,3.66899073,87.239,87.18,3.09912326]
[1773525575588,3.66899073,87.219,87.176,3.72234145]
[1773525576986,3.66899073,87.219,87.181,3.71215167]
[1773525578588,3.66899073,87.219,87.182,3.7174228]
[1773525579289,3.66899073,87.219,87.184,3.72835419]
[1773525580386,3.66899073,87.284,87.211,3.72829396]
[1773525580691,3.66899073,87.284,87.231,3.72829396]
[1773525580891,3.66899073,87.284,87.237,3.72829396]
[1773525582385,10.309,87.282,87.237,3.72829396]
[1773525582589,3.66899073,87.279,87.221,3.73575748]
[1773525584187,3.66899073,87.279,87.223,3.72281848]
[1773525590386,3.80601809,87.277,87.223,3.72281848]
[1773525591595,4.04891163,87.275,87.223,3.72281848]
[1773525592889,4.04891163,87.269,87.212,14.07873855]
[1773525593495,4.04891163,87.269,87.213,3.75657634]
[1773525597091,4.04891163,87.269,87.218,3.76209431]
[1773525598592,4.04891163,87.269,87.22,10.317]
[1773525598793,10.31,87.274,87.22,10.317]
[1773525598794,4.04891163,87.279,87.221,3.75469053]
[1773525599293,4.04891163,87.279,87.231,3.7563825]
[1773525600495,4.04891163,87.292,87.233,3.7511183]
[1773525601493,4.04891163,87.279,87.218,3.75053628]
[1773525601686,4.04891163,87.279,87.173,34.39]
[1773525601687,4.04891163,87.239,87.172,3.75053628]
[1773525601888,3.10234057,87.23,87.172,3.75053628]
[1773525602093,4.04891163,87.229,87.183,3.75053628]
[1773525603795,4.04891163,87.249,87.191,3.66333619]
[1773525604392,4.04891163,87.249,87.193,3.66997128]
[1773525604601,4.04891163,87.249,87.201,3.66997128]
[1773525605598,4.04891163,87.249,87.2,3.10234057]
[1773525605599,4.04891163,87.268,87.204,3.62947073]
[1773525606497,4.04891163,87.268,87.211,10.318]
[1773525606698,4.04891163,87.268,87.212,3.58471492]
[1773525607602,4.04891163,87.268,87.215,3.54881511]
[1773525609404,4.04891163,87.268,87.217,3.45023209]
[1773525610898,4.04891163,87.268,87.22,3.44145889]
[1773525612501,4.04891163,87.268,87.221,10.317]
[1773525612706,4.04891163,87.268,87.222,3.43885777]
[1773525614205,4.04891163,87.268,87.224,3.43525605]
[1773525615603,4.04891163,87.268,87.226,3.43935872]